fUSD/lending_fUSD_20250818
["ID","MTS","AMOUNT","RATE_DAILY","PERIOD"]
[380030899,1755487275194,-250.0,9.538e-05,2]
[380030900,1755487282856,500.0,6.6e-07,120]
[380030901,1755487288432,-164.12176258,9.538e-05,2]
[380030902,1755487292043,500.0,6.6e-07,120]
[380030903,1755487300604,500.0,6.6e-07,120]
[380030904,1755487311452,-1883.51823742,9.538e-05,2]
[380030905,1755487311481,-500.0,9.85e-05,2]
[380030906,1755487311510,-276.83576524,9.85e-05,2]
[380030907,1755487311541,-201.12570381,9.85e-05,2]
[380030908,1755487311570,-500.0,9.85e-05,2]
[380030909,1755487311606,-500.0,9.85e-05,2]
[380030910,1755487311637,-500.0,9.85e-05,2]
[380030911,1755487311665,-500.0,9.85e-05,2]
[380030912,1755487312007,-22.03853095,0.0001,2]
[380030913,1755487312042,-16758.57418209,0.0001,2]
[380030914,1755487346593,-200.0,9.999e-05,2]
[380030915,1755487353712,-100.0,9.999e-05,2]
[380030916,1755487353747,-113.56909129,9.999e-05,2]
[380030917,1755487353782,-72.86181742,9.999e-05,2]
[380030918,1755487356107,500.0,6.6e-07,120]
[380030919,1755487362558,500.0,6.6e-07,120]
[380030920,1755487371198,-177.83639085,9.999e-05,2]
[380030921,1755487371321,500.0,6.6e-07,120]
[380030922,1755487372257,-144.3272183,9.999e-05,2]
[380030923,1755487377790,500.0,6.6e-07,120]
[380030924,1755487399891,500.0,6.6e-07,120]
[380030925,1755487407624,500.0,6.6e-07,120]
[380030926,1755487441970,-300.0,9.849e-05,2]
[380030927,1755487441999,-300.0,9.849e-05,2]
[380030928,1755487442029,-170.0,9.898e-05,7]
[380030929,1755487442289,-150.0,9.999e-05,2]
[380030930,1755487442299,-4045.69523172,0.0001,2]
[380030931,1755487458204,-200.0,0.0001,2]
[380030932,1755487466083,-132.23693416,9.835e-05,2]
[380030933,1755487466168,-20.21306584,9.835e-05,2]
[380030934,1755487475112,-152.45,9.849e-05,2]
[380030935,1755487475725,-95.1,9.863e-05,2]
[380030936,1755487477566,500.0,6.6e-07,120]
[380030937,1755487483856,-57.35,9.863e-05,2]
[380030938,1755487483887,-135.83236987,9.877e-05,2]
[380030939,1755487484361,-16.61763013,9.877e-05,2]
[380030940,1755487484502,500.0,6.6e-07,120]
[380030941,1755487490833,-2.42429744,9.891e-05,2]
[380030942,1755487490938,-150.02570256,9.891e-05,2]
[380030943,1755487491459,500.0,6.6e-07,120]
[380030944,1755487498225,500.0,6.6e-07,120]
[380030945,1755487506523,500.0,6.6e-07,120]
[380030946,1755487522113,151.0,6.6e-07,120]
[380030947,1755487525441,1218.0,6.6e-07,120]
[380030948,1755487525695,1218.0,6.6e-07,120]
[380030949,1755487526011,1218.0,6.6e-07,120]
[380030950,1755487527775,1218.0,6.6e-07,120]
[380030951,1755487528257,1218.0,6.6e-07,120]
[380030952,1755487528698,1218.0,6.6e-07,120]
[380030953,1755487528918,1218.0,6.6e-07,120]
[380030954,1755487529152,1218.0,6.6e-07,120]
[380030955,1755487529433,1218.0,6.6e-07,120]
[380030956,1755487529882,1218.0,6.6e-07,120]
[380030957,1755487530056,1218.0,6.6e-07,120]
[380030958,1755487530757,1218.0,6.6e-07,120]
[380030959,1755487531059,1218.0,6.6e-07,120]
[380030960,1755487531269,1218.0,6.6e-07,120]
[380030961,1755487531552,1218.0,6.6e-07,120]
[380030962,1755487532975,-150.0,9.759e-05,2]
[380030963,1755487554800,-216.13307639,9.759e-05,2]
[380030964,1755487562137,-205.5964809,9.759e-05,2]
[380030965,1755487570305,-178.2690443,9.759e-05,2]
[380030966,1755487577857,-63.62139841,9.759e-05,2]
[380030967,1755487581785,79.16721692,9.71e-05,2]
[380030968,1755487586089,-293.58998626,9.71e-05,2]
[380030969,1755487596195,-48.97235382,9.71e-05,2]
[380030970,1755487609983,-152.45,9.905e-05,2]
[380030971,1755487610011,-152.45,9.918e-05,2]
[380030972,1755487610035,-92.80697553,9.918e-05,2]
[380030973,1755487610044,-86.87848063,9.918e-05,2]
[380030974,1755487623902,500.0,6.6e-07,120]
[380030975,1755487628177,-92.99240556,9.918e-05,2]
[380030976,1755487629075,-92.99240556,9.918e-05,2]
[380030977,1755487629091,-113.41760818,9.918e-05,2]
[380030978,1755487629100,-83.02445989,9.918e-05,2]
[380030979,1755487630723,500.0,6.6e-07,120]
[380030980,1755487639216,500.0,6.6e-07,120]
[380030981,1755487641513,-86.16276288,9.918e-05,2]
[380030982,1755487641552,-86.16276288,9.918e-05,2]
[380030983,1755487641613,-207.42722338,9.918e-05,2]
[380030984,1755487641622,-76.81788578,9.918e-05,2]
[380030985,1755487645744,500.0,6.6e-07,120]
[380030986,1755487649700,-150.0,9.918e-05,2]
[380030987,1755487655127,500.0,6.6e-07,120]
[380030988,1755487662099,500.0,6.6e-07,120]
[380030989,1755487663518,-150.0,9.918e-05,2]
[380030990,1755487669814,500.0,6.6e-07,120]
[380030991,1755487670440,-107.76757038,9.918e-05,2]
[380030992,1755487670470,-107.76757038,9.918e-05,2]
[380030993,1755487670507,-184.46485924,9.918e-05,2]
[380030994,1755487676416,500.0,6.6e-07,120]
[380030995,1755487684844,500.0,6.6e-07,120]
[380030996,1755487684947,-103.9755932,9.918e-05,2]
[380030997,1755487685647,-103.9755932,9.918e-05,2]
[380030998,1755487685664,-289.1088136,9.918e-05,2]
[380030999,1755487691630,-72.07849073,9.918e-05,2]
[380031000,1755487691650,-72.07849073,9.918e-05,2]
[380031001,1755487691669,-5.84301854,9.918e-05,2]
[380031002,1755487698539,35191.434141,0.00012,30]
[380031003,1755487698689,500.0,6.6e-07,120]
[380031004,1755487706796,-282.86270145,9.918e-05,2]
[380031005,1755487706825,-7.86143963,9.918e-05,2]
[380031006,1755487707076,561.0,6.6e-07,120]
[380031007,1755487707107,-142.13856037,9.918e-05,2]
[380031008,1755487707117,-140.72414108,9.919e-05,2]
[380031009,1755487707141,-11.72585892,9.919e-05,2]
[380031010,1755487710914,-152.45,9.933e-05,2]
[380031011,1755487710937,-147.551154,9.999e-05,2]
[380031012,1755487714577,-300.0,9.999e-05,2]
[380031013,1755487717766,162.43247261,6.6e-07,120]
[380031014,1755487722019,-318.97257112,9.868e-05,2]
[380031015,1755487722070,-92.08463288,9.868e-05,2]
[380031016,1755487730357,151.0,9.556e-05,2]
[380031017,1755487736479,-586.1,9.556e-05,2]
[380031018,1755487744509,-150.73274762,9.556e-05,2]
[380031019,1755487758309,-250.0,9.556e-05,2]
[380031020,1755487775064,-300.0,9.556e-05,2]
[380031021,1755487780245,-194.58197604,9.556e-05,2]
[380031022,1755487787915,-152.54160838,9.556e-05,2]
[380031027,1755487802178,-123.14148101,9.555e-05,2]
[380031028,1755487802240,-93.85851899,9.555e-05,2]
[380031029,1755487802249,-123.14148101,9.555e-05,2]
[380031030,1755487824966,151.0,6.6e-07,120]
[380031031,1755487831691,-0.72180381,9.555e-05,2]
[380031056,1755487833393,-176.13671518,9.555e-05,2]
[380031057,1755487833403,-1200.0,9.555e-05,2]
[380031058,1755487833421,-20197.80366796,9.556e-05,2]
[380031059,1755487833431,-4676.77,9.603e-05,2]
[380031060,1755487833440,-165.99,9.603e-05,2]
[380031061,1755487833451,-41320.23010241,9.837e-05,2]
[380031062,1755487833557,-449.99999356,9.837e-05,2]
[380031063,1755487833593,-16004.2696019,9.837e-05,2]
[380031066,1755487838034,-12700.57811002,9.837e-05,2]
[380031067,1755487838076,-3084.09600437,9.837e-05,2]
[380031068,1755487838087,-9607.4335828,9.837e-05,2]
[380031072,1755487838688,-1928.05042159,9.837e-05,2]
[380031073,1755487838733,-1380.94,9.837e-05,2]
[380031074,1755487838772,-3153.94450525,9.837e-05,2]
[380031075,1755487838961,-358815.664905,9.837e-05,2]
[380031076,1755487838971,-475.91000588,9.992e-05,2]
[380031077,1755487838980,-150.0,9.999e-05,2]
[380031078,1755487838989,-12077.43568758,0.0001,2]
[380031079,1755487838999,-8903.0,0.0001,2]
[380031080,1755487839008,-600.0,0.0001,3]
[380031081,1755487839018,-1000.0,0.0001,2]
[380031082,1755487839027,-200.0,0.00010083,2]
[380031083,1755487839036,-14370.2340165,0.00010085,2]
[380031084,1755487839046,-451.76,0.00010092,2]
[380031085,1755487839056,-250.0,0.00010092,2]
[380031086,1755487839065,-999.99,0.00010092,2]
[380031087,1755487839075,-1300.0,0.000101,3]
[380031088,1755487839084,-202.94,0.00010123,2]
[380031089,1755487839093,-200.0,0.00010184,2]
[380031090,1755487839102,-9999.99,0.00010184,2]
[380031091,1755487839112,-9999.99,0.00010184,2]
[380031092,1755487839122,-299.99,0.00010184,2]
[380031093,1755487839131,-150.99,0.00010184,2]
[380031094,1755487839140,-150.99,0.00010184,2]
[380031095,1755487839149,-22127.43,0.00010184,2]
[380031096,1755487839159,-9999.99,0.00010184,2]
[380031097,1755487839176,-150.0,0.000102,2]
[380031098,1755487839186,-2000.0,0.000102,3]
[380031099,1755487839195,-200.0,0.00010286,2]
[380031100,1755487839205,-339.68,0.00010287,2]
[380031101,1755487839215,-2600.0,0.000103,3]
[380031102,1755487839224,-200.0,0.00010389,2]
[380031103,1755487839234,-3300.0,0.000104,3]
[380031104,1755487839244,-200.0,0.00010492,2]
[380031105,1755487839254,-5513.0,0.000105,3]
[380031106,1755487839263,-600.0,0.000105,3]
[380031107,1755487839272,-420.0,0.00010511,2]
[380031108,1755487839282,-1680.0,0.00010511,2]
[380031109,1755487839291,-1085.0,0.00010522,2]
[380031110,1755487839301,-448445.2072269,0.0001055,2]
[380031111,1755487839310,-600.0,0.000106,3]
[380031112,1755487839320,-9572.826,0.00010692,2]
[380031113,1755487839329,-546.942,0.00010692,2]
[380031114,1755487839339,-600.0,0.000107,3]
[380031115,1755487839348,-281.39,0.00010723,2]
[380031116,1755487839357,-250.0,0.00010735,2]
[380031117,1755487839368,-744.6009,0.0001074,2]
[380031118,1755487839377,-314.70945577,0.00010776,2]
[380031119,1755487839387,-256.0,0.00010776,2]
[380031120,1755487839396,-1000.0,0.000108,2]
[380031121,1755487839405,-3289.0444,0.000108,2]
[380031122,1755487839419,-323.133,0.000108,2]
[380031123,1755487839428,-600.0,0.000108,3]
[380031124,1755487839437,-564.8013309,0.000108,2]
[380031125,1755487839447,-163.2083,0.000108,2]
[380031126,1755487839457,-165.99,0.00010803,2]
[380031127,1755487839468,-564.8013309,0.00010833,2]
[380031128,1755487839479,-500.0,0.00010849,2]
[380031129,1755487839489,-564.8013309,0.00010867,2]
[380031130,1755487839499,-238.79937449,0.00010889,2]
[380031131,1755487839509,-6237.35833,0.0001089,2]
[380031132,1755487839519,-950.69897856,0.0001089,2]
[380031133,1755487839528,-238.79937442,0.0001089,2]
[380031134,1755487839537,-238.79937442,0.00010891,2]
[380031135,1755487839549,-238.79937442,0.00010893,2]
[380031136,1755487839559,-151.0,0.00010893,2]
[380031137,1755487839568,-500.0,0.00010893,2]
[380031138,1755487839579,-176.50660503,0.00010893,2]
[380031139,1755487839588,-200.0,0.00010893,2]
[380031140,1755487839598,-151.0,0.00010893,2]
[380031141,1755487839607,-151.0,0.00010893,2]
[380031142,1755487839617,-151.0,0.00010893,2]
[380031143,1755487839627,-151.0,0.00010893,2]
[380031144,1755487839636,-151.0,0.00010893,2]
[380031145,1755487839646,-151.0,0.00010893,2]
[380031146,1755487839656,-151.0,0.00010893,2]
[380031147,1755487839673,-151.0,0.00010893,2]
[380031148,1755487839682,-151.0,0.00010893,2]
[380031149,1755487839691,-151.0,0.00010893,2]
[380031150,1755487839702,-151.0,0.00010893,2]
[380031151,1755487839711,-151.0,0.00010893,2]
[380031152,1755487839720,-151.0,0.00010893,2]
[380031153,1755487839730,-151.0,0.00010893,2]
[380031154,1755487839740,-500.0,0.00010893,2]
[380031155,1755487839749,-284.94812722,0.00010893,2]
[380031156,1755487839759,-238.79937442,0.00010894,2]
[380031157,1755487839768,-238.79937442,0.00010895,2]
[380031158,1755487839778,-238.79937442,0.00010896,2]
[380031159,1755487839787,-238.79937442,0.00010898,2]
[380031160,1755487839796,-238.79937442,0.00010899,2]
[380031161,1755487839806,-190457.4337,0.000109,2]
[380031162,1755487839815,-1251.40943873,0.000109,2]
[380031163,1755487839825,-178.9,0.000109,2]
[380031164,1755487839835,-6654.4074,0.000109,2]
[380031165,1755487839846,-7119.22242042,0.000109,2]
[380031166,1755487839856,-1261.0,0.000109,3]
[380031167,1755487839866,-564.8013309,0.000109,2]
[380031168,1755487839875,-3981.73739307,0.000109,2]
[380031169,1755487839884,-238.79937442,0.000109,2]
[380031170,1755487839894,-208.31843497,0.000109,2]
[380031171,1755487839903,-250.0,0.0001091,2]
[380031172,1755487839913,-429.75174743,0.00010945,2]
[380031173,1755487839925,-500.0,0.00010948,2]
[380031174,1755487839936,-2000.0,0.00010959,2]
[380031176,1755487839945,-150.0,0.00010959,2]
[380031177,1755487839955,-150.72577644,0.00010973,2]
[380031178,1755487839964,-500.0,0.00010973,2]
[380031179,1755487839974,-500.0,0.00010973,2]
[380031180,1755487839983,-518.11592461,0.00010973,2]
[380031181,1755487839992,-172.63172576,0.00010973,2]
[380031182,1755487840002,-500.06107947,0.00010973,2]
[380031183,1755487840011,-501.3536025,0.00010973,2]
[380031184,1755487840021,-629.80551833,0.00010973,2]
[380031186,1755487840030,-500.0,0.00010973,2]
[380031187,1755487840040,-500.0,0.00010973,2]
[380031188,1755487840050,-500.0,0.00010973,2]
[380031189,1755487840059,-500.0,0.00010973,2]
[380031190,1755487840068,-500.0,0.00010973,2]
[380031191,1755487840078,-500.0,0.00010973,2]
[380031192,1755487840087,-500.0,0.00010973,2]
[380031193,1755487840096,-527.74833519,0.00010973,2]
[380031194,1755487840105,-500.0,0.00010973,2]
[380031195,1755487840115,-500.0,0.00010973,2]
[380031196,1755487840124,-500.0,0.00010973,2]
[380031197,1755487840133,-500.0,0.00010973,2]
[380031198,1755487840143,-500.0,0.00010973,2]
[380031199,1755487840152,-500.0,0.00010973,2]
[380031200,1755487840161,-500.0,0.00010973,2]
[380031201,1755487840173,-500.0,0.00010973,2]
[380031202,1755487840183,-500.0,0.00010973,2]
[380031203,1755487840192,-500.0,0.00010973,2]
[380031204,1755487840201,-500.0,0.00010973,2]
[380031205,1755487840210,-501.35103141,0.00010973,2]
[380031206,1755487840219,-500.0,0.00010973,2]
[380031207,1755487840228,-500.0,0.00010973,2]
[380031208,1755487840238,-500.0,0.00010973,2]
[380031209,1755487840247,-500.0,0.00010973,2]
[380031210,1755487840257,-500.0,0.00010973,2]
[380031211,1755487840266,-1854.0,0.00010973,2]
[380031212,1755487840276,-500.0,0.00010973,2]
[380031213,1755487840285,-150.0,0.00010973,2]
[380031214,1755487840296,-150.86263942,0.00010973,2]
[380031215,1755487840306,-500.0,0.00010973,2]
[380031216,1755487840316,-150.0,0.00010973,2]
[380031217,1755487840326,-500.0,0.00010973,2]
[380031218,1755487840335,-500.0,0.00010973,2]
[380031219,1755487840345,-150.0,0.00010973,2]
[380031220,1755487840354,-792.0,0.00010973,2]
[380031221,1755487840364,-500.0,0.00010973,2]
[380031222,1755487840373,-500.0,0.00010973,2]
[380031223,1755487840382,-276.67112621,0.00010973,2]
[380031224,1755487840392,-150.0,0.00010973,2]
[380031225,1755487840401,-3948.0,0.00010973,2]
[380031226,1755487840410,-150.0,0.00010973,2]
[380031227,1755487840424,-296.59253519,0.00010973,2]
[380031228,1755487840433,-150.0,0.00010973,2]
[380031229,1755487840442,-150.0,0.00010973,2]
[380031230,1755487840452,-500.0,0.00010973,2]
[380031231,1755487840463,-150.0,0.00010973,2]
[380031232,1755487840472,-150.0,0.00010973,2]
[380031233,1755487840484,-500.0,0.00010973,2]
[380031234,1755487840494,-500.0,0.00010973,2]
[380031235,1755487840503,-150.0,0.00010973,2]
[380031236,1755487840513,-343.0,0.00010986,2]
[380031237,1755487840523,-28078.0,0.00010986,2]
[380031238,1755487840533,-500.0,0.00010989,2]
[380031239,1755487840555,-151.31924293,0.00010989,2]
[380031241,1755487840564,-950.69897856,0.0001099,2]
[380031243,1755487840574,-950.69897856,0.0001099,2]
[380031245,1755487840583,-11911.6526032,0.00010992,2]
[380031246,1755487840592,-1000.0,0.00010999,2]
[380031247,1755487840601,-1000.0,0.00010999,2]
[380031248,1755487840610,-1000.0,0.00010999,2]
[380031249,1755487840619,-1211.66251023,0.00010999,3]
[380031250,1755487840629,-4000.0,0.00010999,2]
[380031251,1755487840640,-5374.59,0.00010999,2]
[380031252,1755487840651,-194.58055401,0.00010999,3]
[380031253,1755487840661,-1222.04,0.00010999,2]
[380031254,1755487840673,-255.0,0.00010999,2]
[380031255,1755487840683,-150.0,0.00010999,2]
[380031256,1755487840693,-150.0,0.00010999,2]
[380031257,1755487840702,-150.0,0.00010999,2]
[380031258,1755487840711,-150.0,0.00010999,2]
[380031259,1755487840721,-150.0,0.00010999,2]
[380031260,1755487840730,-150.0,0.00010999,2]
[380031261,1755487840740,-150.0,0.00010999,2]
[380031262,1755487840750,-1479953.22533166,0.00011,2]
[380031263,1755487840760,-448330.91,0.00011,2]
[380031264,1755487840770,-21000.93,0.00011,2]
[380031265,1755487840779,-1927.88228301,0.00011,2]
[380031266,1755487840788,-200.0,0.00011,2]
[380031267,1755487840799,-208.949571,0.00011,2]
[380031268,1755487840809,-150.80259,0.00011,2]
[380031269,1755487840820,-3572.779691,0.00011,2]
[380031270,1755487840831,-3881.095499,0.00011,2]
[380031271,1755487840841,-151.306567,0.00011,2]
[380031272,1755487840851,-1000.0,0.00011,2]
[380031273,1755487840860,-1000.0,0.00011,2]
[380031274,1755487840871,-1000.0,0.00011,2]
[380031275,1755487840880,-1000.0,0.00011,2]
[380031276,1755487840889,-1000.0,0.00011,2]
[380031277,1755487840899,-1000.0,0.00011,2]
[380031278,1755487840907,-1000.0,0.00011,2]
[380031279,1755487840920,-1000.0,0.00011,2]
[380031280,1755487840929,-1000.0,0.00011,2]
[380031281,1755487840938,-1000.0,0.00011,2]
[380031282,1755487840947,-1000.0,0.00011,2]
[380031283,1755487840957,-1000.0,0.00011,2]
[380031284,1755487840966,-1000.0,0.00011,2]
[380031285,1755487840975,-1000.0,0.00011,2]
[380031286,1755487840985,-1000.0,0.00011,2]
[380031287,1755487840994,-1000.0,0.00011,2]
[380031288,1755487841004,-1000.0,0.00011,2]
[380031289,1755487841014,-1000.0,0.00011,2]
[380031290,1755487841025,-1000.0,0.00011,2]
[380031291,1755487841036,-1000.0,0.00011,2]
[380031292,1755487841047,-1000.0,0.00011,2]
[380031293,1755487841057,-1000.0,0.00011,2]
[380031294,1755487841067,-1000.0,0.00011,2]
[380031295,1755487841076,-1000.0,0.00011,2]
[380031296,1755487841085,-1000.0,0.00011,2]
[380031297,1755487841095,-1000.0,0.00011,2]
[380031298,1755487841104,-1000.0,0.00011,2]
[380031299,1755487841113,-1000.0,0.00011,2]
[380031300,1755487841122,-435.41908921,0.00011,2]
[380031301,1755487841132,-200.0,0.00011,2]
[380031302,1755487841141,-435716.73615089,0.00011,2]
[380031303,1755487841151,-17335273.54331838,0.00011,2]
[380031311,1755487843894,-1001.41191085,0.00011,2]
[380031312,1755487843931,-133663.52958322,0.00011,2]
[380031313,1755487843956,-9273.52717142,0.00011,2]
[380031314,1755487843967,-9935.30999999,0.00011,2]
[380031315,1755487844165,-8595.48765015,0.00011,2]
[380031316,1755487844179,-8947.21879473,0.00011,2]
[380031317,1755487844190,-8943.78386462,0.00011,2]
[380031318,1755487844201,-9077.54866152,0.00011,2]
[380031319,1755487844212,-8943.84023489,0.00011,2]
[380031320,1755487844323,-20223.71273744,0.00011,2]
[380031321,1755487844336,-809.011464,0.00011,2]
[380031379,1755487846847,-282.96543185,0.00011,2]
[380031381,1755487846858,-323.42653023,0.00011,2]
[380031395,1755487846977,-18412.75714718,0.00011,2]
[380031397,1755487846988,-1666.62041696,0.00011,2]
[380031420,1755487847255,-979.68284924,0.00011,2]
[380031421,1755487847273,-3623.801544,0.00011,2]
[380031422,1755487849351,-1415.44956061,0.00011,2]
[380031423,1755487849362,-1849.6851,0.00011,2]
[380031424,1755487849403,-747.57258154,0.00011,2]
[380031425,1755487849458,-1840.49998,0.00011,2]
[380031426,1755487849469,-514.27857324,0.00011,2]
[380031427,1755487849484,-2040.08467297,0.00011,2]
[380031428,1755487849591,-10397.7,0.00011,2]
[380031429,1755487849620,-918.0,0.00011,2]
[380031430,1755487849632,-28996.0888247,0.00011,2]
[380031431,1755487849644,-166494.64856482,0.00011,2]
[380031432,1755487849755,-1321.3999809,0.00011,2]
[380031433,1755487850149,20223.71273744,9.931e-05,2]
[380031434,1755487862814,154.14,9.555e-05,2]
[380031436,1755487876217,300.0,6.6e-07,120]
[380031437,1755487876467,-81.48805537,9.555e-05,2]
[380031438,1755487882998,300.0,6.6e-07,120]
[380031439,1755487883046,-64.37194463,9.555e-05,2]
[380031440,1755487892117,300.0,6.6e-07,120]
[380031441,1755487905338,300.0,6.6e-07,120]
[380031442,1755487913375,300.0,6.6e-07,120]
[380031443,1755487917504,-415.92185212,9.555e-05,2]
[380031444,1755487917533,-380.0,9.836e-05,2]
[380031445,1755487922030,300.0,6.6e-07,120]
[380031446,1755487929296,300.0,6.6e-07,120]
[380031447,1755487933151,-210.84989426,9.929e-05,2]
[380031448,1755487938902,300.0,6.6e-07,120]
[380031449,1755487940038,-289.15010574,9.929e-05,2]
[380031450,1755487947169,300.0,6.6e-07,120]
[380031451,1755487957134,300.0,6.6e-07,120]
[380031452,1755487964338,300.0,6.6e-07,120]
[380031453,1755487971513,300.0,6.6e-07,120]
[380031454,1755487979898,292.0,6.6e-07,120]
[380031456,1755488053707,500.0,6.6e-07,120]
[380031457,1755488060923,500.0,6.6e-07,120]
[380031458,1755488068531,500.0,6.6e-07,120]
[380031459,1755488074694,-195.39621159,9.736e-05,2]
[380031460,1755488074721,-225.74868196,9.736e-05,2]
[380031461,1755488074748,-421.64693258,9.736e-05,2]
[380031462,1755488078879,500.0,6.6e-07,120]
[380031463,1755488082805,-319.96291533,9.736e-05,2]
[380031464,1755488095913,500.0,6.6e-07,120]
[380031465,1755488099628,-497.06,9.679e-05,2]
[380031466,1755488105109,500.0,6.6e-07,120]
[380031467,1755488112985,500.0,6.6e-07,120]
[380031468,1755488118962,500.0,6.6e-07,120]
[380031469,1755488126070,500.0,6.6e-07,120]
[380031470,1755488128407,151.0,6.6e-07,120]
[380031471,1755488135024,500.0,6.6e-07,120]
[380031472,1755488142720,500.0,6.6e-07,120]
[380031473,1755488150457,500.0,6.6e-07,120]
[380031474,1755488154772,-186.0,9.067e-05,3]
[380031475,1755488159229,500.0,6.6e-07,120]
[380031476,1755488172488,500.0,6.6e-07,120]
[380031477,1755488181554,500.0,6.6e-07,120]
[380031478,1755488190404,500.0,6.6e-07,120]
[380031479,1755488197817,500.0,6.6e-07,120]
[380031480,1755488217261,500.0,6.6e-07,120]
[380031481,1755488217763,500.0,6.6e-07,120]
[380031483,1755488231710,500.0,6.6e-07,120]
[380031484,1755488242353,639.0,6.6e-07,120]
[380031485,1755488246897,250.0,8.5e-07,2]
[380031486,1755488287516,267.80028468,9.2e-07,2]
[380031487,1755488309782,1000.0,6.6e-07,120]
[380031488,1755488317752,1000.0,6.6e-07,120]
[380031489,1755488325203,1000.0,6.6e-07,120]
[380031490,1755488331658,1000.0,6.6e-07,120]
[380031491,1755488339941,1000.0,6.6e-07,120]
[380031492,1755488348914,1000.0,6.6e-07,120]
[380031493,1755488358805,1000.0,6.6e-07,120]
[380031495,1755488365621,1000.0,6.6e-07,120]
[380031496,1755488373733,1000.0,6.6e-07,120]
[380031497,1755488374894,-233.45388708,9.382e-05,2]
[380031498,1755488377124,-16.54611292,9.382e-05,2]
[380031499,1755488377145,-165.67,9.531e-05,2]
[380031500,1755488377172,-265.8882186,9.697e-05,2]
[380031501,1755488382059,1000.0,6.6e-07,120]
[380031502,1755488383061,-102.53840265,9.697e-05,2]
[380031503,1755488383084,-112.77134786,9.697e-05,2]
[380031505,1755488384526,-186.82431071,9.697e-05,2]
[380031506,1755488384548,-87.61132766,9.697e-05,2]
[380031507,1755488386838,-175.79972332,9.697e-05,2]
[380031508,1755488386861,-9.80027668,9.697e-05,2]
[380031509,1755488389990,-300.0,9.697e-05,2]
[380031510,1755488390217,1000.0,6.6e-07,120]
[380031511,1755488391955,-190.19972332,9.697e-05,2]
[380031512,1755488391976,-49.10027668,9.697e-05,2]
[380031513,1755488393437,-155.17548708,9.697e-05,2]
[380031514,1755488395349,-61.30472173,9.697e-05,2]
[380031515,1755488395373,-469.71093522,9.697e-05,2]
[380031516,1755488397638,-30.28906478,9.697e-05,2]
[380031517,1755488397669,-165.75167247,9.697e-05,2]
[380031518,1755488398035,1000.0,6.6e-07,120]
[380031519,1755488398266,1000.0,6.6e-07,120]
[380031520,1755488401439,-41.13726602,9.697e-05,2]
[380031521,1755488401461,-136.57305261,9.697e-05,2]
[380031522,1755488403729,-178.53,9.696e-05,2]
[380031523,1755488405314,-121.47,9.696e-05,2]
[380031524,1755488405339,-38.46510617,9.696e-05,2]
[380031525,1755488406792,-156.587,9.696e-05,2]
[380031526,1755488409288,-278.97944678,9.696e-05,2]
[380031527,1755488409578,1000.0,6.6e-07,120]
[380031528,1755488411731,-311.42351311,9.696e-05,2]
[380031529,1755488417067,-234.70262015,9.696e-05,2]
[380031530,1755488417380,1000.0,6.6e-07,120]
[380031531,1755488418705,-179.84231379,9.696e-05,2]
[380031532,1755488418728,-17.56694739,9.697e-05,2]
[380031533,1755488418751,-85.12490078,9.697e-05,2]
[380031535,1755488425265,-78.03102609,9.697e-05,2]
[380031536,1755488425287,-164.44679459,9.697e-05,2]
[380031537,1755488425308,-10.6499513,9.697e-05,2]
[380031538,1755488427392,1000.0,6.6e-07,120]
[380031539,1755488427824,-56.5099513,9.697e-05,2]
[380031540,1755488429168,-86.9800974,9.697e-05,2]
[380031541,1755488429194,-230.32713051,9.697e-05,2]
[380031542,1755488433299,-85.49382135,9.697e-05,2]
[380031543,1755488433323,-96.97492912,9.697e-05,2]